bitfinex/quotes_SOLUSD_20240705
["timestamp","ask_amount","ask_price","bid_price","bid_amount"]
[1720161129542,3.70262527,125.21,125.15,100.8659772]
[1720161129543,7.40487889,125.2,125.15,100.8659772]
[1720161129852,7.40487889,125.2,125.15,0.8659772]
[1720161130029,23.72827051,125.27,125.16,19.9742]
[1720161130230,6.0059,125.3,125.16,19.9742]
[1720161130434,41.11,125.32,125.21,100.0]
[1720161130662,15.1163,125.33,125.22,19.9645]
[1720161130869,0.79782991,125.36,125.26,100.0]
[1720161131158,7.15950214,125.36,125.21,108.23451643]
[1720161131469,56.11,125.33,125.16,1.84823666]
[1720161131760,6.5547,125.32,125.2,100.0]
[1720161131924,6.5547,125.32,125.22,100.0]
[1720161132146,7.37992991,125.36,125.24,100.0]
[1720161132345,7.37992991,125.36,125.24,106.6601]
[1720161132549,7.37992991,125.36,125.24,118.0866]
[1720161132777,7.37992991,125.36,125.27,100.0]
[1720161132951,7.37992991,125.36,125.28,0.17]
[1720161133546,41.11,125.35,125.28,0.17]
[1720161134256,41.11,125.35,125.24,18.0866]
[1720161134257,41.11,125.35,125.2,100.0]
[1720161134459,41.11,125.31,125.19,6.491]
[1720161134661,15.3845,125.3,125.19,6.491]
[1720161134959,15.72626536,125.2,125.16,1.84823666]
[1720161135178,3.70252167,125.19,125.18,100.0]
[1720161135364,3.70252167,125.19,125.15,0.8659772]
[1720161135365,19.42878703,125.19,125.15,0.8659772]
[1720161135563,11.10841685,125.18,125.15,0.8659772]
[1720161135907,11.10841685,125.17,125.15,0.8659772]
[1720161136080,11.10841685,125.16,125.15,0.8659772]
[1720161136255,58.18741685,125.16,125.05,0.2126157]
[1720161136448,92.29378051,125.06,124.91,0.1]
[1720161136646,7.84956103,125.0,124.89,100.51339199]
[1720161136900,3.92147805,124.98,124.89,8.51999199]
[1720161137185,3.92147805,124.97,124.93,100.0]
[1720161137365,3.92147805,125.0,124.89,0.51339199]
[1720161137560,3.92147805,125.0,124.92,8.0048]
[1720161137877,3.92147805,124.99,124.89,0.51339199]
[1720161138054,3.92147805,124.99,124.91,108.0054]
[1720161138256,3.92147805,124.99,124.93,100.0]
[1720161138454,3.92147805,125.02,124.93,100.0]
[1720161138669,3.92147805,125.0,124.94,8.0037]
[1720161138882,54.71147805,125.01,124.91,100.0]
[1720161139089,50.79,125.05,124.89,0.53555039]
[1720161139090,3.92147805,124.99,124.92,100.0]
[1720161139251,3.92147805,125.02,124.93,100.0]
[1720161139450,3.92147805,125.03,124.97,100.0]
[1720161139677,6.149,125.13,124.99,200.0]
[1720161139992,67.228,125.14,125.0,100.0]
[1720161140207,71.14947805,125.14,125.0,100.0]
[1720161140379,16.438,125.14,125.01,7.9993]
[1720161140567,16.438,125.14,125.03,19.995]
[1720161140907,16.438,125.14,125.04,0.17]
[1720161141070,16.438,125.14,125.04,8.1668]
[1720161141269,16.438,125.14,125.04,0.17]
[1720161141479,16.438,125.14,125.05,7.9966]
[1720161141672,0.1,125.19,125.06,8.166]
[1720161141871,0.1,125.19,125.1,7.9929]
[1720161142091,0.1,125.19,125.08,200.0]
[1720161142092,0.1,125.19,125.11,8.1629]
[1720161142291,0.1,125.19,125.12,7.9923]
[1720161142489,0.1,125.19,125.13,8.1615]
[1720161142786,0.1,125.19,125.11,128.1434]
[1720161142977,0.1,125.19,125.11,120.1511]
[1720161143167,0.1,125.19,125.11,28.1435]
[1720161143378,0.1,125.19,125.11,100.17]
[1720161143582,0.1,125.19,125.08,119.9869]
[1720161143782,0.1,125.19,125.09,100.0]
[1720161143982,0.1,125.19,125.11,100.0]
[1720161144599,0.1,125.19,125.13,100.0]
[1720161144811,0.1,125.19,125.08,100.0]
[1720161144969,50.89,125.19,125.06,1.84971454]
[1720161145608,65.89,125.19,125.06,1.84971454]
[1720161145981,50.79,125.15,125.06,1.84971454]
[1720161147379,0.1,125.19,125.07,7.9954]
[1720161147604,50.79,125.18,125.07,7.9954]
[1720161147789,50.79,125.14,125.02,119.996]
[1720161148305,50.79,125.15,125.04,100.0]
[1720161148487,50.79,125.15,125.04,19.9935]
[1720161148813,50.79,125.15,125.07,7.9952]
[1720161149017,50.79,125.15,125.06,119.9892]
[1720161149018,0.1,125.19,125.06,19.9892]
[1720161149323,0.1,125.19,125.04,200.0]
[1720161149324,50.79,125.18,125.04,200.0]
[1720161149490,50.79,125.18,125.05,20.1606]
[1720161150004,50.79,125.18,125.07,100.0]
[1720161150303,0.1,125.19,125.11,100.0]
[1720161150492,0.1,125.19,125.12,0.17]
[1720161151202,0.1,125.19,125.12,8.162]
[1720161151508,0.1,125.19,125.13,100.0]
[1720161151718,0.1,125.19,125.14,0.17]
[1720161152384,0.31525751,125.23,125.17,100.0]
[1720161152612,0.31525751,125.23,125.2,107.9867]
[1720161152817,0.31525751,125.23,125.22,107.9859]
[1720161153811,0.1,125.29,125.25,100.0]
[1720161154184,0.1,125.29,125.27,100.0]
[1720161154593,0.9308079,125.37,125.27,100.0]
[1720161154914,0.9308079,125.37,125.27,107.9826]
[1720161155114,0.9308079,125.37,125.27,100.0]
[1720161155293,0.9308079,125.37,125.29,100.0]
[1720161155790,0.9308079,125.37,125.25,100.0]
[1720161156194,0.9308079,125.37,125.22,27.9505]
[1720161156523,0.9308079,125.37,125.24,119.961]
[1720161156818,0.9308079,125.37,125.25,0.17]
[1720161157328,50.6,125.35,125.21,19.9655]
[1720161157626,50.6,125.35,125.2,100.0]
[1720161157627,50.6,125.35,125.24,100.0]
[1720161157989,50.6,125.35,125.22,127.9495]
[1720161158298,50.6,125.35,125.23,107.9852]
[1720161158498,50.6,125.35,125.16,39.9463]
[1720161158499,65.6,125.35,125.21,100.0]
[1720161158688,65.6,125.35,125.19,100.0]
[1720161158889,50.6,125.31,125.19,100.0]
[1720161159108,50.6,125.31,125.14,100.0]
[1720161159109,50.6,125.31,125.17,100.0]
[1720161159315,50.6,125.26,125.14,200.0]
[1720161159615,50.6,125.26,125.18,100.0]
[1720161159994,50.6,125.26,125.15,19.9754]
[1720161160189,50.6,125.26,125.16,100.0]
[1720161160398,50.6,125.26,125.15,19.9754]
[1720161160617,50.6,125.26,125.17,100.0]
[1720161161808,0.79891348,125.18,125.16,100.0]
[1720161162018,0.79891348,125.18,125.14,100.0]
[1720161162310,0.79891348,125.18,125.16,100.0]
[1720161162713,0.79891348,125.18,125.16,107.9892]
[1720161162883,0.61891348,125.18,125.17,7.9891]
[1720161163082,0.61891348,125.18,125.16,119.974]
[1720161163287,0.61891348,125.18,125.14,200.0]
[1720161163515,0.61891348,125.18,125.14,207.9905]
[1720161163749,0.61891348,125.18,125.17,107.9891]
[1720161164195,0.61891348,125.18,125.14,7.991]
[1720161164388,0.61891348,125.18,125.17,107.9891]
[1720161164590,0.43891348,125.18,125.17,107.9891]
[1720161164790,0.9308079,125.37,125.31,100.0]
[1720161165126,0.9308079,125.37,125.31,98.96233117]
[1720161165295,0.9308079,125.37,125.29,98.96233117]
[1720161165626,0.9308079,125.37,125.27,98.96233117]
[1720161165941,0.9308079,125.37,125.29,98.96233117]
[1720161166126,0.9308079,125.37,125.27,126.90133117]
[1720161166419,0.9308079,125.37,125.27,126.90093117]
[1720161166623,0.9308079,125.37,125.28,7.982]
[1720161166825,0.9308079,125.37,125.29,0.17]
[1720161167124,0.9308079,125.37,125.28,0.17]
[1720161167518,0.9308079,125.37,125.28,99.13233117]
[1720161167697,0.9308079,125.37,125.28,0.17]
[1720161168020,0.9308079,125.37,125.26,106.94553117]
[1720161168021,0.9308079,125.37,125.27,0.17]
[1720161168522,0.9308079,125.37,125.27,8.1524]
[1720161168707,0.9308079,125.37,125.27,0.17]
[1720161169592,15.8365,125.36,125.24,98.96233117]
[1720161169804,15.8365,125.36,125.24,106.94683117]
[1720161170095,15.8365,125.36,125.26,106.94563117]
[1720161170301,15.8365,125.36,125.26,98.96233117]
[1720161170603,15.8365,125.36,125.25,27.9435]
[1720161170999,15.8365,125.36,125.27,19.9566]
[1720161171215,15.8365,125.36,125.26,98.96233117]
[1720161171395,15.8365,125.36,125.27,0.17]
[1720161171829,15.0,125.35,125.23,19.9621]
[1720161172134,15.0,125.31,125.19,106.94963117]
[1720161172301,15.0,125.29,125.17,120.78212017]
[1720161172813,15.0,125.31,125.22,19.9643]
[1720161173015,15.0,125.31,125.23,7.9851]
[1720161173201,15.0,125.31,125.22,19.9643]
[1720161173717,15.0,125.31,125.19,118.93123117]
[1720161173918,15.0,125.31,125.2,7.9872]
[1720161174219,15.0,125.31,125.23,7.9852]
[1720161174398,15.0,125.31,125.22,98.96233117]
[1720161174835,15.0,125.31,125.23,98.96233117]
[1720161175226,15.8365,125.36,125.26,98.96233117]
[1720161175523,30.8365,125.36,125.27,0.17]
[1720161175730,15.8365,125.36,125.27,0.17]
[1720161176334,15.8365,125.36,125.26,107.11503117]
[1720161176503,15.8365,125.36,125.27,19.9565]
[1720161176826,15.8365,125.36,125.28,0.17]
[1720161177421,15.8365,125.36,125.27,0.17]
[1720161177632,15.8365,125.36,125.25,7.9838]
[1720161177633,15.8365,125.36,125.28,98.96233117]
[1720161177817,15.8365,125.36,125.29,0.17]
[1720161178635,15.8365,125.36,125.28,28.1058]
[1720161178840,15.8365,125.36,125.28,0.17]
[1720161179028,15.8365,125.36,125.28,8.1519]
[1720161179232,15.8365,125.36,125.28,0.17]
[1720161179415,0.9308079,125.37,125.32,19.9485]
[1720161179619,0.9308079,125.37,125.33,0.17]
[1720161181031,0.9308079,125.37,125.32,20.1189]
[1720161181516,0.9308079,125.37,125.33,98.96233117]
[1720161181717,0.9308079,125.37,125.32,28.098]
[1720161181718,0.9308079,125.37,125.34,0.17]
[1720161181923,0.79782991,125.36,125.32,0.17]
[1720161182137,0.79782991,125.36,125.32,8.1495]
[1720161182318,0.79782991,125.36,125.32,0.17]
[1720161182716,0.79782991,125.36,125.28,19.9544]
[1720161182717,0.79782991,125.36,125.26,100.0]
[1720161182953,0.79782991,125.36,125.25,27.943]
[1720161183317,0.79782991,125.36,125.23,7.9852]
[1720161183745,15.79782991,125.36,125.23,7.9852]
[1720161183917,15.79782991,125.36,125.22,127.9495]
[1720161184111,15.79782991,125.36,125.2,355.3]
[1720161184112,6.4775,125.34,125.2,355.3]
[1720161184316,21.4775,125.34,125.2,355.3]
[1720161184516,50.52,125.33,125.2,100.0]
[1720161184939,15.0,125.32,125.2,100.0]
[1720161185143,15.0,125.32,125.19,19.9688]
[1720161185449,15.0,125.3,125.17,100.0]
[1720161185649,15.0,125.27,125.13,219.9783]
[1720161185845,15.0,125.27,125.15,7.9899]
[1720161186053,16.6313,125.26,125.15,7.9899]
[1720161186256,16.6313,125.26,125.16,7.9897]
[1720161186553,16.6313,125.26,125.18,7.9884]
[1720161186725,16.6313,125.26,125.19,107.9878]
[1720161187350,16.6313,125.26,125.19,19.9687]
[1720161187644,16.6313,125.26,125.19,127.956]
[1720161187833,16.6313,125.26,125.2,0.17]
[1720161188222,16.6313,125.26,125.18,7.9878]
[1720161188545,16.6313,125.26,125.14,100.0]
[1720161188840,16.6313,125.26,125.17,107.9886]
[1720161189018,16.6313,125.26,125.17,100.0]
[1720161189216,16.6313,125.26,125.17,119.9718]
[1720161189442,16.6313,125.26,125.2,7.987]
[1720161189645,16.6313,125.26,125.21,0.17]
[1720161189853,16.6313,125.26,125.16,100.0]
[1720161190624,16.6313,125.26,125.18,7.9882]
[1720161190820,16.6313,125.26,125.16,100.0]
[1720161191014,16.6313,125.26,125.16,107.9895]
[1720161191247,16.6313,125.26,125.15,36.18974142]
[1720161191457,16.6313,125.26,125.17,100.0]
[1720161191620,16.6313,125.26,125.18,0.17]
[1720161191818,16.6313,125.26,125.15,28.19944142]
[1720161192018,16.6313,125.26,125.16,100.0]
[1720161192252,16.6313,125.26,125.17,7.9885]
[1720161192461,16.6313,125.26,125.17,19.9718]
[1720161192675,16.6313,125.26,125.18,7.9884]
[1720161192965,16.6313,125.26,125.19,100.0]
[1720161193137,16.6313,125.26,125.2,0.17]
[1720161193336,16.6313,125.26,125.21,107.9863]
[1720161193651,16.6313,125.26,125.22,0.17]
[1720161196242,16.6313,125.26,125.22,100.17]
[1720161196462,16.6313,125.26,125.22,0.17]
[1720161196759,16.0181,125.32,125.22,100.0]
[1720161196965,16.0181,125.32,125.23,0.17]
[1720161197263,16.0181,125.32,125.24,107.9845]
[1720161197473,16.0181,125.32,125.25,0.17]
[1720161197651,16.0181,125.32,125.28,7.9821]
[1720161197861,16.0181,125.32,125.26,200.0]
[1720161197862,0.79782991,125.36,125.29,128.1048]
[1720161198367,0.79782991,125.36,125.3,7.9804]
[1720161198575,0.79782991,125.36,125.31,0.17]
[1720161198953,1.60347511,125.36,125.31,0.17]
[1720161199269,1.60347511,125.36,125.3,0.17]
[1720161200243,1.60347511,125.36,125.31,7.9801]
[1720161200445,1.60347511,125.36,125.32,0.17]
[1720161200763,1.60347511,125.36,125.3,100.17]
[1720161200986,1.60347511,125.36,125.3,0.17]
[1720161201168,1.60347511,125.36,125.31,100.0]
[1720161201344,1.60347511,125.36,125.32,0.17]
[1720161201968,0.79782991,125.33,125.32,0.17]
[1720161202169,0.79782991,125.33,125.24,100.0]
[1720161202354,15.79782991,125.33,125.21,275.265]
[1720161202557,15.79782991,125.33,125.2,8.21771654]
[1720161202558,15.0,125.31,125.2,8.21771654]
[1720161202878,22.8002,125.3,125.2,8.21771654]
[1720161203453,22.8002,125.3,125.19,100.0]
[1720161203840,15.0,125.29,125.19,8.21868133]
[1720161204070,15.0,125.27,125.17,100.0]
[1720161204247,15.0,125.29,125.17,100.0]
[1720161204661,22.8002,125.3,125.19,100.0]
[1720161205062,37.8002,125.3,125.19,100.0]
[1720161205265,22.8002,125.3,125.21,100.0]
[1720161205569,15.0,125.28,125.18,8.22043832]
[1720161206073,37.8002,125.3,125.18,8.22043832]
[1720161206274,37.8002,125.3,125.19,100.0]
[1720161206275,22.8002,125.3,125.19,100.0]
[1720161206494,22.8002,125.3,125.21,100.0]
[1720161206969,22.8002,125.3,125.22,0.17]
[1720161207172,22.8002,125.3,125.22,100.17]
[1720161207550,16.2661,125.3,125.25,100.0]
[1720161207749,16.2661,125.3,125.26,0.17]
[1720161207952,0.79782991,125.33,125.26,0.17]
[1720161208159,0.79782991,125.33,125.29,100.0]
[1720161208372,0.79782991,125.33,125.3,0.17]
[1720161208884,0.79782991,125.33,125.31,100.0]
[1720161209094,0.79782991,125.33,125.32,0.17]
[1720161209375,0.61782991,125.33,125.25,200.0]
[1720161209878,0.61782991,125.33,125.3,100.0]
[1720161210266,0.61782991,125.33,125.31,100.0]
[1720161210677,0.61782991,125.33,125.32,100.0]
[1720161211471,0.43782991,125.33,125.32,100.17]
[1720161213877,1.24347511,125.33,125.32,100.17]
[1720161214072,1.24347511,125.33,125.32,0.17]
[1720161214274,1.24347511,125.33,125.28,100.0]
[1720161214996,1.24347511,125.33,125.25,200.0]
[1720161215163,1.24347511,125.33,125.29,100.0]
[1720161215563,1.24347511,125.33,125.29,200.0]
[1720161215768,1.24347511,125.33,125.27,200.0]
[1720161216078,1.24347511,125.33,125.27,100.0]
[1720161216276,1.24347511,125.33,125.25,200.0]
[1720161216578,1.24347511,125.33,125.27,100.0]
[1720161217260,1.24347511,125.33,125.28,0.17]
[1720161217572,1.24347511,125.33,125.29,200.0]
[1720161217757,1.24347511,125.33,125.3,0.17]
[1720161218161,1.06347511,125.33,125.3,0.17]
[1720161218364,1.06347511,125.33,125.28,100.0]
[1720161218560,1.06347511,125.33,125.29,100.0]
[1720161219072,1.06347511,125.33,125.28,100.0]
[1720161220271,1.06347511,125.33,125.29,0.17]
[1720161220859,1.06347511,125.33,125.29,100.17]
[1720161221059,1.06347511,125.33,125.29,0.17]
[1720161221583,0.88347511,125.33,125.32,100.0]
[1720161221880,0.88347511,125.33,125.29,100.17]
[1720161222057,0.88347511,125.33,125.31,100.0]
[1720161222372,0.88347511,125.33,125.29,100.17]
[1720161222579,0.88347511,125.33,125.29,200.17]
[1720161222962,0.88347511,125.33,125.29,100.17]
[1720161223162,0.88347511,125.33,125.29,0.17]
[1720161223382,0.88347511,125.33,125.27,200.0]
[1720161224055,0.88347511,125.33,125.29,100.0]
[1720161224452,0.88347511,125.33,125.28,100.0]
[1720161224872,0.88347511,125.33,125.29,0.17]
[1720161225274,0.88347511,125.33,125.27,100.0]
[1720161227281,0.88347511,125.33,125.26,1.84676114]
[1720161228001,0.88347511,125.33,125.26,101.84676114]
[1720161228167,0.88347511,125.33,125.26,1.84676114]
[1720161229089,0.88347511,125.33,125.24,208.21433092]
[1720161229572,0.88347511,125.33,125.24,8.21433092]
[1720161230091,0.88347511,125.33,125.24,108.21433092]
[1720161230288,0.88347511,125.33,125.24,8.21433092]
[1720161230588,15.0,125.32,125.24,8.21433092]
[1720161230885,0.88347511,125.33,125.24,8.21433092]
[1720161231088,0.88347511,125.33,125.25,100.0]
[1720161231272,0.88347511,125.33,125.24,8.21433092]
[1720161231591,0.88347511,125.33,125.25,100.0]
[1720161231790,0.88347511,125.33,125.24,8.21433092]
[1720161231972,15.88347511,125.33,125.24,8.21433092]
[1720161232171,0.88347511,125.33,125.24,8.21433092]
[1720161232685,0.88347511,125.33,125.27,100.0]
[1720161232888,0.88347511,125.33,125.29,100.0]
[1720161233088,0.88347511,125.33,125.3,100.17]
[1720161233885,0.70347511,125.33,125.32,100.0]
[1720161234093,0.70347511,125.33,125.32,100.17]
[1720161234390,0.70347511,125.33,125.32,0.17]
[1720161235474,0.70347511,125.33,125.3,100.0]
[1720161235974,0.52347511,125.33,125.3,100.0]
[1720161236180,0.52347511,125.33,125.31,0.17]
[1720161237483,0.52347511,125.33,125.27,108.21279077]
[1720161237879,0.52347511,125.33,125.27,8.21279077]
[1720161241078,15.0,125.32,125.27,8.21279077]
[1720161241280,0.52347511,125.33,125.24,100.0]
[1720161241477,0.52347511,125.33,125.22,207.978]
[1720161241677,0.52347511,125.33,125.26,8.21650049]
[1720161241977,0.07782991,125.28,125.22,107.978]
[1720161242274,0.07782991,125.28,125.24,8.21700113]
[1720161243972,0.07782991,125.28,125.24,108.21700113]
[1720161244300,0.07782991,125.28,125.24,8.21700113]
[1720161244677,0.07782991,125.28,125.24,208.21700113]
[1720161244885,0.07782991,125.28,125.25,0.17]
[1720161245483,0.07782991,125.28,125.26,100.0]
[1720161245730,0.07782991,125.28,125.27,0.17]
[1720161246176,22.5234452,125.33,125.27,200.0]
[1720161246383,22.5234452,125.33,125.26,0.17]
[1720161246997,15.9303452,125.33,125.27,100.0]
[1720161247198,0.4456452,125.33,125.29,100.0]
[1720161247402,0.4456452,125.33,125.29,200.0]
[1720161247615,0.4456452,125.33,125.31,200.0]
[1720161247784,0.1,125.39,125.31,200.0]
[1720161247785,0.1,125.39,125.34,100.0]
[1720161248106,0.1,125.39,125.32,100.0]
[1720161248278,0.1,125.39,125.33,100.0]
[1720161248607,0.1,125.39,125.34,100.0]
[1720161248783,0.1,125.39,125.33,100.0]
[1720161249311,0.1,125.39,125.34,100.0]
[1720161249905,0.1,125.39,125.32,100.0]
[1720161249906,0.1,125.39,125.35,0.17]
[1720161251707,0.1,125.39,125.34,0.17]
[1720161252213,0.1,125.39,125.29,200.0]
[1720161252414,0.1,125.39,125.29,101.84631894]
[1720161252716,0.1,125.39,125.3,100.0]
[1720161253086,0.1,125.39,125.29,1.84631894]
[1720161253285,0.1,125.39,125.33,100.0]
[1720161253488,0.1,125.39,125.31,100.0]
[1720161254302,0.1,125.39,125.32,0.17]
[1720161254506,0.1,125.39,125.32,100.17]
[1720161255810,0.1,125.39,125.32,0.17]
[1720161256043,0.1,125.39,125.32,100.17]
[1720161256392,0.1,125.39,125.29,1.84631894]
[1720161256712,0.1,125.39,125.31,100.0]
[1720161257295,0.1,125.39,125.35,100.0]
[1720161257706,0.1,125.39,125.36,0.17]
[1720161258222,0.1,125.39,125.33,100.0]
[1720161258601,0.1,125.39,125.32,100.0]
[1720161258920,0.1,125.39,125.35,100.0]
[1720161259934,0.1,125.39,125.36,0.17]
[1720161260227,0.1,125.39,125.37,100.0]
[1720161260431,0.1,125.39,125.38,0.17]
[1720161261100,15.9277,125.43,125.39,100.0]
[1720161261801,0.79751177,125.4,125.39,100.0]
[1720161263036,0.61751177,125.4,125.39,100.0]
[1720161265345,0.61751177,125.4,125.39,100.17]
[1720161265699,0.43751177,125.4,125.39,100.17]
[1720161266130,0.43751177,125.4,125.35,100.0]
[1720161266320,0.43751177,125.4,125.32,100.0]
[1720161266510,0.43751177,125.4,125.33,100.0]
[1720161267027,0.43751177,125.4,125.31,110.05987269]
[1720161267813,15.43751177,125.4,125.31,110.05987269]
[1720161268009,15.0,125.38,125.31,110.05987269]
[1720161268218,6.0067,125.37,125.31,10.05987269]
[1720161268528,6.0067,125.37,125.31,1.84602426]
[1720161268729,6.0067,125.37,125.29,8.21508263]
[1720161268931,15.0,125.36,125.29,8.21508263]
[1720161269111,15.0,125.33,125.25,255.3]
[1720161269433,15.0,125.33,125.23,7.989]
[1720161269434,16.5286,125.32,125.23,7.989]
[1720161269627,16.5286,125.32,125.25,8.2181172]
[1720161270442,16.5286,125.32,125.21,7.989]
[1720161270443,15.0,125.29,125.21,7.989]
[1720161270604,15.0,125.29,125.2,100.0]
[1720161270605,15.0,125.29,125.22,16.20981418]
[1720161271214,15.0,125.29,125.22,7.989]
[1720161271617,15.0,125.29,125.21,7.989]
[1720161272524,15.0,125.27,125.21,7.989]
[1720161273560,15.0,125.27,125.18,7.989]
[1720161273713,15.0,125.27,125.18,16.21132873]
[1720161274120,6.1941,125.22,125.18,16.21132873]
[1720161274318,6.1941,125.22,125.18,7.989]
[1720161274632,6.1941,125.22,125.16,107.989]
[1720161274851,6.1941,125.22,125.16,7.989]
[1720161276849,6.1941,125.22,125.17,0.17]
[1720161277218,15.0,125.19,125.09,1.36922168]
[1720161277443,15.0,125.19,125.07,100.0]
[1720161277626,15.0,125.17,125.05,100.0]
[1720161277824,15.0,125.15,125.06,100.0]
[1720161278123,15.0,125.17,125.06,100.0]
[1720161278433,15.0,125.17,125.08,100.0]
[1720161279229,15.0,125.19,125.08,100.0]
[1720161279451,15.0,125.17,125.08,100.0]
[1720161279650,15.0,125.17,125.07,100.0]
[1720161279831,15.0,125.19,125.08,100.0]
[1720161280243,66.069,125.21,125.07,100.0]
[1720161280244,15.0,125.17,125.07,100.0]
[1720161281336,15.0,125.17,125.13,0.17]
[1720161281944,0.43751177,125.14,125.13,0.17]
[1720161282134,0.43751177,125.14,125.06,100.0]
[1720161284350,0.43751177,125.14,125.12,0.17]
[1720161284560,6.5061,125.13,125.05,8.22944289]
[1720161284877,6.5061,125.13,125.06,100.0]
[1720161284878,22.6724,125.13,125.06,100.0]
[1720161285852,22.6724,125.13,125.12,0.17]
[1720161286031,16.1663,125.13,125.12,0.17]
[1720161286225,0.43751177,125.14,125.12,0.17]
[1720161286849,0.43751177,125.14,125.12,100.0]
[1720161287046,0.25751177,125.14,125.13,0.17]
[1720161287240,30.8842,125.21,125.14,100.0]
[1720161288075,15.8842,125.21,125.14,100.0]
[1720161288570,30.8842,125.21,125.14,100.0]
[1720161288739,22.4266,125.26,125.16,100.0]
[1720161288945,22.4266,125.26,125.17,100.0]
[1720161289133,22.4266,125.26,125.18,0.17]
[1720161289461,37.4266,125.26,125.18,0.17]
[1720161289757,15.0,125.25,125.18,0.17]
[1720161289960,15.0,125.25,125.15,100.0]
[1720161290158,15.0,125.25,125.14,100.0]
[1720161290455,15.0,125.23,125.11,0.1]
[1720161290873,73.0866,125.26,125.11,0.1]
[1720161290874,15.0,125.21,125.11,0.1]
[1720161291233,15.0,125.18,125.11,0.1]
[1720161291448,15.3539,125.17,125.11,0.1]
[1720161291934,15.0,125.16,125.11,0.1]
[1720161292155,21.8508,125.17,125.11,0.1]
[1720161293064,6.6455,125.22,125.12,100.0]
[1720161293442,6.6455,125.22,125.12,200.0]
[1720161293835,6.6455,125.22,125.14,100.0]
[1720161294036,6.6455,125.22,125.14,200.0]
[1720161294237,6.6455,125.22,125.15,0.17]
[1720161295377,21.6455,125.22,125.15,0.17]
[1720161295676,6.6455,125.22,125.15,0.17]
[1720161295858,16.4745,125.23,125.15,0.17]
[1720161296665,6.0466,125.21,125.11,0.1]
[1720161297335,15.0,125.2,125.11,0.1]
[1720161298033,15.0,125.18,125.11,0.1]
[1720161298746,6.0466,125.21,125.11,0.1]
[1720161298747,21.0466,125.21,125.11,0.1]
[1720161299176,15.0,125.19,125.11,0.1]
[1720161299469,6.128,125.17,125.07,8.22923499]
[1720161299643,15.7587,125.16,125.07,8.22923499]
[1720161299843,15.0,125.15,125.03,100.0]
[1720161300064,15.0,125.15,125.05,8.23279953]
[1720161300266,15.7587,125.16,125.06,200.0]
[1720161300445,15.7587,125.16,125.08,100.0]
[1720161300945,15.7587,125.16,125.1,100.0]
[1720161301248,15.7587,125.16,125.05,108.23279953]
[1720161301764,15.7587,125.16,125.05,8.23279953]
[1720161301974,0.79968013,125.06,125.05,208.23279953]
[1720161302148,15.0,125.17,125.05,216.44676199]
[1720161302357,16.2104,125.2,125.09,100.0]
[1720161302674,16.2104,125.2,125.07,200.0]
[1720161302837,16.2104,125.2,125.09,100.0]
[1720161303038,16.2104,125.2,125.09,200.0]
[1720161303347,15.0,125.19,125.1,0.17]
[1720161304370,16.2104,125.2,125.1,100.17]
[1720161304681,16.2104,125.2,125.1,0.17]
[1720161304881,16.2104,125.2,125.08,100.0]
[1720161304882,50.66,125.16,125.05,10.08266199]